[Event "1st SOA-GM Festival 2024"]
[Site "Bhubaneswar"]
[Date "2024.02.01"]
[Round "3.8"]
[White "Aquino, Jethro Dino"]
[Black "Neelash Saha"]
[Result "1/2-1/2"]
[WhiteElo "2166"]
[BlackElo "2446"]
[PlyCount "155"]
[EventDate "2024.02.01"]
[EventType "swiss"]
[EventCountry "IND"]
[TimeControl "5400+30"]

1. e4 {[%emt 0:00:10]} c6 {[%emt 1:31:00]} 2. d4 {[%emt 0:00:26]} d5 {[%emt 0:00:00]} 3. f3 {[%emt 0:00:49]} dxe4 {[%emt 0:00:00]} 4. fxe4 {[%emt 0:00:11]} e5 {[%emt 0:00:00]} 5. Nf3 {[%emt 0:00:23]} Bg4 {[%emt 0:00:00]} 6. Bc4 {[%emt 0:00:24]} Nd7 {[%emt 0:00:00]} 7. c3 {[%emt 0:00:16]} Bd6 {[%emt 0:00:00]} 8. O-O {[%emt 0:01:29]} Ngf6 {[%emt 0:00:00]} 9. Bg5 {[%emt 0:01:45]} b5 {[%emt 0:00:00]} 10. Bb3 {[%emt 0:03:22]} Qb6 {[%emt 0:00:00]} 11. Nbd2 {[%emt 0:02:27]} c5 {[%emt 0:00:00]} 12. Bxf6 {[%emt 0:10:56]} gxf6 {[%emt 0:00:00]} 13. Bd5 {[%emt 0:19:10]} Rc8 {[%emt 0:00:00]} 14. a4 {[%emt 0:06:06]} a6 {[%emt 0:00:00]} 15. Kh1 {[%emt 0:01:20]} exd4 {[%emt 0:00:00]} 16. cxd4 {[%emt 0:00:38]} cxd4 {[%emt 0:00:00]} 17. Nb3 {[%emt 0:04:39]} Ne5 {[%emt 0:00:00]} 18. Qxd4 {[%emt 0:03:24]} Rb8 {[%emt 0:00:00]} 19. axb5 {[%emt 0:04:45]} Qxb5 {[%emt 0:00:00]} 20. Nh4 {[%emt 0:02:27]} Be7 {[%emt 0:00:00]} 21. Nf5 {[%emt 0:00:53]} Bxf5 {[%emt 0:00:00]} 22. Rxf5 {[%emt 0:00:13]} Rg8 {[%emt 0:00:00]} 23. Qf2 {[%emt 0:08:28]} Qb6 {[%emt 0:00:00]} 24. Qh4 {[%emt 0:00:54]} Rg7 {[%emt 0:00:00]} 25. Qh6 {[%emt 0:04:29]} Kf8 {[%emt 0:00:00]} 26. h3 {[%emt 0:00:18]} Kg8 {[%emt 0:00:00]} 27. Raf1 {[%emt 0:00:31]} Kh8 {[%emt 0:00:00]} 28. g4 {[%emt 0:03:29]} a5 {[%emt 0:00:00]} 29. Qd2 {[%emt 0:08:09]} a4 {[%emt 0:00:00]} 30. Nd4 {[%emt 0:00:44]} Qxb2 {[%emt 0:00:00]} 31. Qxb2 {[%emt 0:00:21]} Rxb2 {[%emt 0:00:00]} 32. R5f2 {[%emt 0:02:50]} Rxf2 {[%emt 0:00:00]} 33. Rxf2 {[%emt 0:00:03]} Bc5 {[%emt 0:00:00]} 34. Rd2 {[%emt 0:00:15]} Bxd4 {[%emt 0:00:00]} 35. Rxd4 {[%emt 0:00:04]} h5 {[%emt 0:00:00]} 36. Rxa4 {[%emt 0:02:29]} hxg4 {[%emt 0:00:00]} 37. hxg4 {[%emt 0:00:14]} Rxg4 {[%emt 0:00:00]} 38. Ra3 {[%emt 0:00:18]} Kg7 {[%emt 0:00:00]} 39. Kh2 {[%emt 0:00:12]} Rg5 {[%emt 0:00:00]} 40. Rg3 {[%emt 0:00:57]} Ng6 {[%emt 0:00:00]} 41. Kg2 {[%emt 0:02:54]} Nf4+ {[%emt 0:00:00]} 42. Kf2 {[%emt 0:01:08]} Kf8 {[%emt 0:00:00]} 43. Rf3 {[%emt 0:00:59]} Nxd5 {[%emt 0:00:00]} 44. exd5 {[%emt 0:00:04]} Ke7 {[%emt 0:00:00]} 45. Rd3 {[%emt 0:00:38]} Re5 {[%emt 0:00:00]} 46. d6+ {[%emt 0:01:14]} Kd7 {[%emt 0:00:00]} 47. Kf3 {[%emt 0:00:03]} Re6 {[%emt 0:00:00]} 48. Kf4 {[%emt 0:00:03]} Rxd6 {[%emt 0:00:00]} 49. Re3 {[%emt 0:00:05]} Re6 {[%emt 0:00:00]} 50. Ra3 {[%emt 0:00:41]} Ke7 {[%emt 0:00:00]} 51. Ra7+ {[%emt 0:00:21]} Kf8 {[%emt 0:00:00]} 52. Kf5 {[%emt 0:00:49]} Kg7 {[%emt 0:00:00]} 53. Ra1 {[%emt 0:00:40]} Re5+ {[%emt 0:00:00]} 54. Kf4 {[%emt 0:00:03]} Rg5 {[%emt 0:00:00]} 55. Ra8 {[%emt 0:02:11]} Rg1 {[%emt 0:00:00]} 56. Ra5 {[%emt 0:01:06]} Rf1+ {[%emt 0:00:00]} 57. Kg4 {[%emt 0:00:06]} Kg6 {[%emt 0:00:00]} 58. Ra6 {[%emt 0:00:23]} Re1 {[%emt 0:00:00]} 59. Kf4 {[%emt 0:00:19]} Re6 {[%emt 0:00:00]} 60. Ra5 {[%emt 0:00:42]} f5 {[%emt 0:00:00]} 61. Ra8 {[%emt 0:00:37]} Re4+ {[%emt 0:00:00]} 62. Kf3 {[%emt 0:00:04]} Rb4 {[%emt 0:00:00]} 63. Rc8 {[%emt 0:00:37]} Rb1 {[%emt 0:00:00]} 64. Ra8 {[%emt 0:00:26]} Kf6 {[%emt 0:00:00]} 65. Rc8 {[%emt 0:00:47]} Ra1 {[%emt 0:02:26]} 66. Rb8 {[%emt 0:00:12]} Rf1+ {[%emt 0:02:10]} 67. Kg2 {[%emt 0:00:09]} Rf4 {[%emt 0:00:04]} 68. Kg3 {[%emt 0:00:09]} Rg4+ {[%emt 0:00:27]} 69. Kf3 {[%emt 0:00:05]} Kg7 {[%emt 0:00:11]} 70. Rb5 {[%emt 0:00:44]} Kg6 {[%emt 0:00:25]} 71. Rb8 {[%emt 0:00:28]} Rd4 {[%emt 0:00:27]} 72. Rg8+ {[%emt 0:00:24]} Kf6 {[%emt 0:00:09]} 73. Ra8 {[%emt 0:00:06]} Ke7 {[%emt 0:00:22]} 74. Ra5 {[%emt 0:00:36]} Ke6 {[%emt 0:00:56]} 75. Ra8 {[%emt 0:00:05]} f4 {[%emt 0:03:33]} 76. Ra5 {[%emt 0:00:11]} Kf6 {[%emt 0:01:49]} 77. Rb5 {[%emt 0:00:09]} Ra4 {[%emt 0:01:43]} 78. Rc5 {[%emt 0:00:09]} 1/2-1/2

[Event "1st SOA-GM Festival 2024"]
[Site "Bhubaneswar"]
[Date "2024.02.01"]
[Round "3.9"]
[White "Sidhant, Mohapatra"]
[Black "Roy Chowdhury, Saptarshi"]
[Result "1/2-1/2"]
[WhiteElo "2421"]
[BlackElo "2233"]
[PlyCount "60"]
[EventDate "2024.02.01"]
[EventType "swiss"]
[EventCountry "IND"]
[TimeControl "5400+30"]

1. e4 {[%emt 0:00:14]} c5 {[%emt 0:00:27]} 2. Nf3 {[%emt 0:00:34]} Nc6 {[%emt 0:00:07]} 3. d4 {[%emt 0:01:22]} cxd4 {[%emt 0:00:05]} 4. Nxd4 {[%emt 0:00:04]} e5 {[%emt 0:00:06]} 5. Nb5 {[%emt 0:00:36]} d6 {[%emt 0:00:06]} 6. N1c3 {[%emt 0:00:52]} a6 {[%emt 0:00:07]} 7. Na3 {[%emt 0:00:04]} Be7 {[%emt 0:00:04]} 8. Nc4 {[%emt 0:01:18]} b5 {[%emt 0:05:01]} 9. Ne3 {[%emt 0:00:29]} Nf6 {[%emt 0:00:05]} 10. Bd3 {[%emt 0:00:05]} O-O {[%emt 0:02:01]} 11. O-O {[%emt 0:01:19]} Rb8 {[%emt 0:04:57]} 12. Re1 {[%emt 0:00:49]} b4 {[%emt 0:04:07]} 13. Ncd5 {[%emt 0:00:48]} Nxd5 {[%emt 0:01:17]} 14. Nxd5 {[%emt 0:01:42]} Bg5 {[%emt 0:01:01]} 15. a3 {[%emt 0:00:35]} Bxc1 {[%emt 0:03:24]} 16. Qxc1 {[%emt 0:00:05]} a5 {[%emt 0:01:16]} 17. axb4 {[%emt 0:00:36]} axb4 {[%emt 0:01:09]} 18. Qd2 {[%emt 0:04:01]} Be6 {[%emt 0:05:54]} 19. Bc4 {[%emt 0:02:25]} Nd4 {[%emt 0:04:14]} 20. c3 {[%emt 0:13:58]} bxc3 {[%emt 0:00:41]} 21. bxc3 {[%emt 0:00:05]} Bxd5 {[%emt 0:02:55]} 22. Bxd5 {[%emt 0:00:06]} Nb3 {[%emt 0:00:05]} 23. Bxb3 {[%emt 0:00:06]} Rxb3 {[%emt 0:00:04]} 24. Rab1 {[%emt 0:00:06]} Rxb1 {[%emt 0:00:09]} 25. Rxb1 {[%emt 0:00:03]} Qc7 {[%emt 0:00:04]} 26. Rd1 {[%emt 0:00:10]} Rd8 {[%emt 0:00:09]} 27. g3 {[%emt 0:00:04]} h6 {[%emt 0:00:07]} 28. Kg2 {[%emt 0:00:09]} Kf8 {[%emt 0:00:08]} 29. Qd3 {[%emt 0:00:19]} Ke7 {[%emt 0:00:05]} 30. Ra1 {[%emt 0:00:06]} Rd7 {[%emt 0:01:09]} 1/2-1/2

[Event "1st SOA-GM Festival 2024"]
[Site "Bhubaneswar"]
[Date "2024.02.01"]
[Round "3.10"]
[White "Pattnayak Nilsu"]
[Black "Adireddy Arjun"]
[Result "1-0"]
[WhiteElo "1987"]
[BlackElo "2415"]
[PlyCount "137"]
[EventDate "2024.02.01"]
[EventType "swiss"]
[EventCountry "IND"]
[TimeControl "5400+30"]

1. e4 {[%emt 0:00:27]} c5 {[%emt 0:00:15]} 2. Nf3 {[%emt 0:00:06]} e6 {[%emt 0:00:05]} 3. d4 {[%emt 0:00:04]} cxd4 {[%emt 0:00:07]} 4. Nxd4 {[%emt 0:00:05]} Nc6 {[%emt 0:00:08]} 5. Nc3 {[%emt 0:00:15]} Qc7 {[%emt 0:00:07]} 6. Be3 {[%emt 0:00:10]} Nf6 {[%emt 0:01:46]} 7. f4 {[%emt 0:00:38]} Bb4 {[%emt 0:00:08]} 8. Ndb5 {[%emt 0:00:11]} Qa5 {[%emt 0:00:07]} 9. e5 {[%emt 0:00:04]} Nd5 {[%emt 0:00:06]} 10. Bd2 {[%emt 0:00:09]} Nxc3 {[%emt 0:00:15]} 11. Bxc3 {[%emt 0:00:15]} Bxc3+ {[%emt 0:00:11]} 12. Nxc3 {[%emt 0:00:06]} Qb4 {[%emt 0:01:50]} 13. Qd2 {[%emt 0:00:08]} Qxb2 {[%emt 0:00:26]} 14. Rb1 {[%emt 0:00:04]} Qa3 {[%emt 0:00:07]} 15. Rb3 {[%emt 0:00:04]} Qa5 {[%emt 0:00:06]} 16. Qd6 {[%emt 0:00:03]} b6 {[%emt 0:00:09]} 17. Bd3 {[%emt 0:00:06]} Nd8 {[%emt 0:00:11]} 18. Ra3 {[%emt 0:00:07]} Nb7 {[%emt 0:49:08]} 19. Rxa5 {[%emt 0:00:06]} Nxd6 {[%emt 0:00:05]} 20. Ra3 {[%emt 0:00:03]} Nb7 {[%emt 0:00:07]} 21. Nb5 {[%emt 0:00:04]} Ke7 {[%emt 0:00:28]} 22. Nc7 {[%emt 0:01:25]} Rb8 {[%emt 0:00:08]} 23. Na6 {[%emt 0:00:05]} Ra8 {[%emt 0:00:10]} 24. Be4 {[%emt 0:00:04]} f5 {[%emt 0:10:48]} 25. Bf3 {[%emt 0:00:13]} Na5 {[%emt 0:00:07]} 26. Bxa8 {[%emt 0:00:14]} Bxa6 {[%emt 0:00:05]} 27. Bf3 {[%emt 0:00:07]} Rc8 {[%emt 0:00:11]} 28. Kd1 {[%emt 0:00:04]} Bb5 {[%emt 0:09:52]} 29. Re1 {[%emt 0:09:43]} Rc5 {[%emt 0:07:17]} 30. Kc1 {[%emt 0:11:51]} Rc4 {[%emt 0:04:21]} 31. g3 {[%emt 0:02:33]} g6 {[%emt 0:04:52]} 32. Rd1 {[%emt 0:01:57]} Rc5 {[%emt 0:03:32]} 33. Rd4 {[%emt 0:08:44]} h6 {[%emt 0:01:01]} 34. h3 {[%emt 0:20:43]} g5 {[%emt 0:04:59]} 35. Rd1 {[%emt 0:06:58]} Rc8 {[%emt 0:02:08]} 36. fxg5 {[%emt 0:12:37]} hxg5 {[%emt 0:00:02]} 37. Rh1 {[%emt 0:00:11]} Rh8 {[%emt 0:01:44]} 38. Rc3 {[%emt 0:00:22]} Nc6 {[%emt 0:01:48]} 39. Bxc6 {[%emt 0:05:26]} Bxc6 {[%emt 0:00:01]} 40. Rh2 {[%emt 0:00:11]} f4 {[%emt 0:00:59]} 41. g4 {[%emt 0:04:03]} f3 {[%emt 0:00:29]} 42. Kd2 {[%emt 0:03:19]} Rf8 {[%emt 0:00:01]} 43. Ke3 {[%emt 0:01:18]} Rf4 {[%emt 0:00:25]} 44. Kf2 {[%emt 0:00:17]} Rd4 {[%emt 0:01:05]} 45. Rd3 {[%emt 0:03:10]} Ra4 {[%emt 0:00:30]} 46. a3 {[%emt 0:00:13]} Ra5 {[%emt 0:00:30]} 47. Re3 {[%emt 0:00:19]} Rb5 {[%emt 0:00:31]} 48. h4 {[%emt 0:01:57]} gxh4 {[%emt 0:00:02]} 49. Rxh4 {[%emt 0:00:06]} Rc5 {[%emt 0:00:18]} 50. c3 {[%emt 0:02:58]} Kf7 {[%emt 0:01:07]} 51. Rh6 {[%emt 0:01:35]} Kg7 {[%emt 0:00:33]} 52. Rf6 {[%emt 0:01:59]} Rxe5 {[%emt 0:00:29]} 53. Rfxf3 {[%emt 0:00:04]} Ra5 {[%emt 0:00:05]} 54. Rh3 {[%emt 0:03:57]} Rxa3 {[%emt 0:00:02]} 55. Re5 {[%emt 0:00:56]} Ra2+ {[%emt 0:00:46]} 56. Kg3 {[%emt 0:00:15]} a5 {[%emt 0:01:08]} 57. Reh5 {[%emt 0:01:21]} Rg2+ {[%emt 0:00:28]} 58. Kf4 {[%emt 0:00:13]} Rf2+ {[%emt 0:00:16]} 59. Kg5 {[%emt 0:00:10]} Be4 {[%emt 0:00:17]} 60. Re3 {[%emt 0:01:35]} Bc2 {[%emt 0:00:58]} 61. c4 {[%emt 0:01:50]} a4 {[%emt 0:00:20]} 62. Rh1 {[%emt 0:00:30]} Rd2 {[%emt 0:00:40]} 63. Rf1 {[%emt 0:00:51]} Bd1 {[%emt 0:00:30]} 64. Re4 {[%emt 0:00:48]} a3 {[%emt 0:00:31]} 65. Ref4 {[%emt 0:00:05]} Bf3 {[%emt 0:00:30]} 66. R4xf3 {[%emt 0:00:12]} Rf2 {[%emt 0:00:30]} 67. R1xf2 {[%emt 0:00:06]} a2 {[%emt 0:00:04]} 68. Rf7+ {[%emt 0:00:04]} Kh8 {[%emt 0:00:04]} 69. Rf8+ {[%emt 0:00:03]} 1-0

[Event "1st SOA-GM Festival 2024"]
[Site "Bhubaneswar"]
[Date "2024.02.01"]
[Round "3.11"]
[White "Namitbir Singh Walia"]
[Black "Dere Pushkar"]
[Result "1-0"]
[WhiteElo "2408"]
[BlackElo "2191"]
[PlyCount "89"]
[EventDate "2024.02.01"]
[EventType "swiss"]
[EventCountry "IND"]
[TimeControl "5400+30"]

1. e4 {[%emt 0:00:03]} c6 {[%emt 0:00:06]} 2. d4 {[%emt 0:00:04]} d5 {[%emt 0:00:18]} 3. Nc3 {[%emt 0:00:03]} dxe4 {[%emt 0:00:34]} 4. Nxe4 {[%emt 0:00:02]} Nf6 {[%emt 0:01:28]} 5. Nxf6+ {[%emt 0:00:06]} exf6 {[%emt 0:00:04]} 6. c3 {[%emt 0:00:05]} Bd6 {[%emt 0:00:16]} 7. Bd3 {[%emt 0:00:05]} O-O {[%emt 0:00:18]} 8. Ne2 {[%emt 0:00:03]} Re8 {[%emt 0:00:26]} 9. O-O {[%emt 0:00:08]} Nd7 {[%emt 0:00:49]} 10. Ng3 {[%emt 0:00:20]} Nf8 {[%emt 0:03:55]} 11. a4 {[%emt 0:00:05]} Ng6 {[%emt 0:14:06]} 12. f4 {[%emt 0:02:22]} Qc7 {[%emt 0:06:30]} 13. Qf3 {[%emt 0:09:00]} Bd7 {[%emt 0:09:55]} 14. f5 {[%emt 0:03:14]} Ne7 {[%emt 0:05:09]} 15. Nh5 {[%emt 0:06:55]} Kh8 {[%emt 0:03:05]} 16. Qg4 {[%emt 0:08:21]} Rg8 {[%emt 0:03:45]} 17. Rf3 {[%emt 0:07:30]} Rae8 {[%emt 0:10:24]} 18. Qh4 {[%emt 0:29:49]} Nxf5 {[%emt 0:09:23]} 19. Bxf5 {[%emt 0:01:13]} Bxh2+ {[%emt 0:02:30]} 20. Kh1 {[%emt 0:12:11]} g5 {[%emt 0:13:29]} 21. Qf2 {[%emt 0:02:08]} g4 {[%emt 0:05:09]} 22. Bf4 {[%emt 0:00:54]} Qd8 {[%emt 0:02:27]} 23. Bxd7 {[%emt 0:09:02]} Qxd7 {[%emt 0:02:31]} 24. Bxh2 {[%emt 0:00:24]} gxf3 {[%emt 0:00:05]} 25. Qxf3 {[%emt 0:00:08]} Re6 {[%emt 0:02:43]} 26. Nxf6 {[%emt 0:00:15]} Qe7 {[%emt 0:00:03]} 27. Nxg8 {[%emt 0:09:30]} Re1+ {[%emt 0:00:03]} 28. Rxe1 {[%emt 0:00:00]} Qxe1+ {[%emt 0:00:04]} 29. Bg1 {[%emt 0:00:00]} Kxg8 {[%emt 0:00:05]} 30. Qf2 {[%emt 0:00:00]} Qc1 {[%emt 0:00:18]} 31. Qg3+ {[%emt 0:00:00]} Kf8 {[%emt 0:00:08]} 32. b4 {[%emt 0:00:00]} Qh6+ {[%emt 0:00:23]} 33. Qh3 {[%emt 0:00:00]} Qc1 {[%emt 0:00:05]} 34. b5 {[%emt 0:00:00]} Qd1 {[%emt 0:00:25]} 35. bxc6 {[%emt 0:00:00]} bxc6 {[%emt 0:00:03]} 36. a5 {[%emt 0:00:00]} Qc1 {[%emt 0:00:11]} 37. Qc8+ {[%emt 0:00:00]} Kg7 {[%emt 0:00:06]} 38. Qxc6 {[%emt 0:00:00]} Qg5 {[%emt 0:00:14]} 39. Qf3 {[%emt 0:00:00]} Qxa5 {[%emt 0:00:03]} 40. d5 {[%emt 0:00:00]} Qd8 {[%emt 0:00:32]} 41. Bxa7 {[%emt 0:00:00]} Qh4+ {[%emt 0:00:05]} 42. Qh3 {[%emt 0:00:00]} Qe1+ {[%emt 0:00:12]} 43. Bg1 {[%emt 0:00:00]} Qd1 {[%emt 0:00:05]} 44. Qf3 {[%emt 0:00:21]} Qc1 {[%emt 0:00:03]} 45. Qe3 {[%emt 0:00:56]} 1-0

[Event "1st SOA-GM Festival 2024"]
[Site "Bhubaneswar"]
[Date "2024.02.01"]
[Round "3.12"]
[White "Ritviz, Parab"]
[Black "Salonika, Saina"]
[Result "1/2-1/2"]
[WhiteElo "2391"]
[BlackElo "2113"]
[PlyCount "90"]
[EventDate "2024.02.01"]
[EventType "swiss"]
[EventCountry "IND"]
[TimeControl "5400+30"]

1. e4 {[%emt 0:01:50]} c5 {[%emt 0:00:05]} 2. Nf3 {[%emt 0:00:28]} d6 {[%emt 0:00:05]} 3. Bb5+ {[%emt 0:02:48]} Bd7 {[%emt 0:00:37]} 4. a4 {[%emt 0:01:34]} Nc6 {[%emt 0:02:54]} 5. d4 {[%emt 0:12:29]} cxd4 {[%emt 0:01:16]} 6. Nxd4 {[%emt 0:00:14]} Nf6 {[%emt 0:02:14]} 7. Nc3 {[%emt 0:01:16]} g6 {[%emt 0:02:04]} 8. Be3 {[%emt 0:04:34]} Bg7 {[%emt 0:06:31]} 9. f3 {[%emt 0:04:27]} O-O {[%emt 0:01:26]} 10. O-O {[%emt 0:01:22]} a6 {[%emt 0:10:02]} 11. Nxc6 {[%emt 0:06:20]} bxc6 {[%emt 0:02:25]} 12. Bc4 {[%emt 0:02:21]} Qa5 {[%emt 0:06:05]} 13. Qd3 {[%emt 0:29:42]} Bc8 {[%emt 0:04:27]} 14. Rad1 {[%emt 0:11:00]} Qb4 {[%emt 0:08:06]} 15. Bd4 {[%emt 0:06:20]} Rd8 {[%emt 0:22:20]} 16. b3 {[%emt 0:07:54]} e6 {[%emt 0:05:16]} 17. Na2 {[%emt 0:02:30]} Qb8 {[%emt 0:01:50]} 18. Qc3 {[%emt 0:00:16]} Ne8 {[%emt 0:01:59]} 19. Bxg7 {[%emt 0:00:54]} Nxg7 {[%emt 0:00:04]} 20. Bd3 {[%emt 0:01:38]} Qb6+ {[%emt 0:00:29]} 21. Kh1 {[%emt 0:00:04]} a5 {[%emt 0:00:08]} 22. Qf6 {[%emt 0:00:08]} e5 {[%emt 0:10:11]} 23. Nc3 {[%emt 0:00:03]} Be6 {[%emt 0:00:19]} 24. Ne2 {[%emt 0:00:22]} Rd7 {[%emt 0:03:16]} 25. f4 {[%emt 0:00:10]} Nh5 {[%emt 0:00:10]} 26. Qh4 {[%emt 0:00:10]} exf4 {[%emt 0:00:07]} 27. Nxf4 {[%emt 0:00:13]} Nxf4 {[%emt 0:00:04]} 28. Rxf4 {[%emt 0:01:09]} Qd4 {[%emt 0:01:32]} 29. Rdf1 {[%emt 0:01:04]} Qe5 {[%emt 0:01:28]} 30. R4f3 {[%emt 0:01:36]} Kg7 {[%emt 0:02:05]} 31. Qf2 {[%emt 0:00:24]} Rb8 {[%emt 0:02:16]} 32. Rg3 {[%emt 0:00:29]} Rb4 {[%emt 0:01:09]} 33. Qd2 {[%emt 0:00:26]} h6 {[%emt 0:00:23]} 34. Re3 {[%emt 0:00:41]} Re7 {[%emt 0:01:43]} 35. Rfe1 {[%emt 0:00:13]} Rd7 {[%emt 0:00:18]} 36. Bf1 {[%emt 0:00:22]} Rd4 {[%emt 0:01:34]} 37. Rd3 {[%emt 0:00:53]} Rxd3 {[%emt 0:01:04]} 38. Bxd3 {[%emt 0:00:19]} Rb7 {[%emt 0:00:19]} 39. Be2 {[%emt 0:00:14]} Rb4 {[%emt 0:00:23]} 40. Bf3 {[%emt 0:00:16]} Rd4 {[%emt 0:00:36]} 41. Qe3 {[%emt 0:00:15]} Rb4 {[%emt 0:00:37]} 42. Qd2 {[%emt 0:00:46]} Rd4 {[%emt 0:00:04]} 43. Qe2 {[%emt 0:00:04]} Qf4 {[%emt 0:00:39]} 44. Rd1 {[%emt 0:01:22]} Rxd1+ {[%emt 0:00:20]} 45. Qxd1 {[%emt 0:00:03]} Qe5 {[%emt 0:00:21]} 1/2-1/2

[Event "1st SOA-GM Festival 2024"]
[Site "Bhubaneswar"]
[Date "2024.02.01"]
[Round "3.13"]
[White "Subhayan Kundu"]
[Black "Vrashank Chouhan"]
[Result "1-0"]
[WhiteElo "2385"]
[BlackElo "2046"]
[PlyCount "125"]
[EventDate "2024.02.01"]
[EventType "swiss"]
[EventCountry "IND"]
[TimeControl "5400+30"]

1. e4 {[%emt 0:01:44]} e6 {[%emt 0:00:23]} 2. d4 {[%emt 0:00:56]} d5 {[%emt 0:00:17]} 3. Nc3 {[%emt 0:00:17]} Bb4 {[%emt 0:00:06]} 4. e5 {[%emt 0:00:19]} c5 {[%emt 0:00:05]} 5. Bd2 {[%emt 0:00:10]} Nc6 {[%emt 0:06:00]} 6. Nb5 {[%emt 0:13:46]} Bxd2+ {[%emt 0:02:14]} 7. Qxd2 {[%emt 0:00:02]} Nge7 {[%emt 0:00:07]} 8. f4 {[%emt 0:15:11]} O-O {[%emt 0:03:32]} 9. dxc5 {[%emt 0:01:05]} b6 {[%emt 0:00:05]} 10. cxb6 {[%emt 0:02:19]} Qxb6 {[%emt 0:00:23]} 11. c3 {[%emt 0:00:06]} Rb8 {[%emt 0:04:25]} 12. b3 {[%emt 0:06:30]} f6 {[%emt 0:05:26]} 13. exf6 {[%emt 0:05:02]} Rxf6 {[%emt 0:00:38]} 14. Nf3 {[%emt 0:00:28]} Ng6 {[%emt 0:10:47]} 15. g3 {[%emt 0:01:56]} e5 {[%emt 0:00:33]} 16. O-O-O {[%emt 0:12:35]} exf4 {[%emt 0:03:33]} 17. Qxd5+ {[%emt 0:04:23]} Be6 {[%emt 0:00:20]} 18. Qe4 {[%emt 0:00:09]} Bf5 {[%emt 0:14:41]} 19. Qd5+ {[%emt 0:07:59]} Kh8 {[%emt 0:46:25]} 20. Nbd4 {[%emt 0:06:18]} Nce7 {[%emt 0:00:00]} 21. Qb5 {[%emt 0:02:16]} Qc7 {[%emt 0:00:00]} 22. Qc4 {[%emt 0:00:07]} Qa5 {[%emt 0:00:00]} 23. Kb2 {[%emt 0:01:44]} Be4 {[%emt 0:00:00]} 24. Qe2 {[%emt 0:06:54]} Ba8 {[%emt 0:00:00]} 25. gxf4 {[%emt 0:02:23]} Nd5 {[%emt 0:00:00]} 26. Qd2 {[%emt 0:08:51]} Ngxf4 {[%emt 0:00:00]} 27. Rg1 {[%emt 0:00:00]} Nb6 {[%emt 0:00:00]} 28. Ka1 {[%emt 0:00:00]} Nbd5 {[%emt 0:00:00]} 29. Kb2 {[%emt 0:00:00]} Nb6 {[%emt 0:00:00]} 30. Ka1 {[%emt 0:00:00]} Nbd5 {[%emt 0:00:00]} 31. Kb2 {[%emt 0:00:00]} Nb6 {[%emt 0:00:00]} 32. Ka1 {[%emt 0:00:00]} Nbd5 {[%emt 0:00:00]} 33. Kb2 {[%emt 0:00:00]} Nb6 {[%emt 0:00:00]} 34. Ka1 {[%emt 0:00:00]} Nbd5 {[%emt 0:00:00]} 35. c4 {[%emt 0:00:00]} Nb4 {[%emt 0:00:00]} 36. Rg5 {[%emt 0:00:00]} Qa3 {[%emt 0:01:52]} 37. Nb5 {[%emt 0:00:18]} Qxa2+ {[%emt 0:00:31]} 38. Qxa2 {[%emt 0:00:04]} Nxa2 {[%emt 0:00:04]} 39. Kxa2 {[%emt 0:01:50]} Bxf3 {[%emt 0:00:05]} 40. Rd7 {[%emt 0:00:03]} Ne6 {[%emt 0:01:16]} 41. Re5 {[%emt 0:00:30]} a6 {[%emt 0:03:23]} 42. Nd6 {[%emt 0:00:38]} Nf8 {[%emt 0:02:38]} 43. Nb5 {[%emt 0:00:22]} Ne6 {[%emt 0:00:00]} 44. Nd6 {[%emt 0:00:38]} Nf8 {[%emt 0:01:00]} 45. Rf7 {[%emt 0:00:48]} Rxd6 {[%emt 0:01:27]} 46. Rxf3 {[%emt 0:00:04]} Nd7 {[%emt 0:00:34]} 47. Rf7 {[%emt 0:05:15]} Nf8 48. Rf3 {[%emt 0:00:00]} Nd7 49. Re7 {[%emt 0:00:00]} Nc5 {[%emt 0:01:35]} 50. b4 {[%emt 0:00:00]} Ne6 {[%emt 0:00:04]} 51. Rd3 {[%emt 0:00:00]} Rxd3 {[%emt 0:00:56]} 52. Bxd3 {[%emt 0:00:00]} Nf4 {[%emt 0:00:07]} 53. Be4 {[%emt 0:00:59]} Kg8 {[%emt 0:00:54]} 54. Ka3 {[%emt 0:00:05]} Rc8 {[%emt 0:00:33]} 55. Kb3 {[%emt 0:00:55]} Rd8 {[%emt 0:00:29]} 56. c5 {[%emt 0:00:14]} Kf8 {[%emt 0:00:31]} 57. Ra7 {[%emt 0:00:25]} Re8 {[%emt 0:00:18]} 58. Ra8 {[%emt 0:00:54]} Rxa8 {[%emt 0:00:16]} 59. Bxa8 {[%emt 0:00:01]} g5 {[%emt 0:00:53]} 60. Ka4 {[%emt 0:00:42]} h5 {[%emt 0:00:33]} 61. Ka5 {[%emt 0:00:18]} Nd3 {[%emt 0:00:26]} 62. Be4 {[%emt 0:00:08]} Nf2 {[%emt 0:00:33]} 63. Bf5 {[%emt 0:00:04]} 1-0

[Event "1st SOA-GM Festival 2024"]
[Site "Bhubaneswar"]
[Date "2024.02.01"]
[Round "3.14"]
[White "Ayush Sharma"]
[Black "Aarav Sinha"]
[Result "1-0"]
[WhiteElo "2378"]
[BlackElo "1981"]
[PlyCount "89"]
[EventDate "2024.02.01"]
[EventType "swiss"]
[EventCountry "IND"]
[TimeControl "5400+30"]

1. Nf3 {[%emt 0:00:06]} Nf6 {[%emt 0:01:37]} 2. g3 {[%emt 0:00:33]} d5 {[%emt 0:01:31]} 3. Bg2 {[%emt 0:00:11]} c5 {[%emt 0:00:54]} 4. O-O {[%emt 0:00:05]} e6 {[%emt 0:02:01]} 5. d4 {[%emt 0:01:22]} Nc6 {[%emt 0:02:38]} 6. c4 {[%emt 0:01:32]} dxc4 {[%emt 0:04:47]} 7. dxc5 {[%emt 0:01:06]} Qxd1 {[%emt 0:02:47]} 8. Rxd1 {[%emt 0:00:01]} Bxc5 {[%emt 0:00:15]} 9. Nbd2 {[%emt 0:00:18]} c3 {[%emt 0:06:18]} 10. bxc3 {[%emt 0:00:03]} O-O {[%emt 0:02:50]} 11. Nb3 {[%emt 0:00:03]} Be7 {[%emt 0:01:11]} 12. c4 {[%emt 0:00:20]} Nd7 {[%emt 0:07:17]} 13. Bg5 {[%emt 0:09:06]} f6 {[%emt 0:01:49]} 14. Be3 {[%emt 0:00:33]} e5 {[%emt 0:01:13]} 15. Nfd2 {[%emt 0:03:34]} f5 {[%emt 0:03:21]} 16. Bd5+ {[%emt 0:06:18]} Kh8 {[%emt 0:00:10]} 17. Nf3 {[%emt 0:00:16]} e4 {[%emt 0:04:16]} 18. Ng5 {[%emt 0:03:03]} Nde5 {[%emt 0:02:00]} 19. Nc5 {[%emt 0:02:34]} Ng4 {[%emt 0:03:32]} 20. Nge6 {[%emt 0:00:59]} Nxe3 {[%emt 0:00:50]} 21. fxe3 {[%emt 0:00:04]} Bxe6 {[%emt 0:02:21]} 22. Nxe6 {[%emt 0:00:02]} Rf6 {[%emt 0:00:10]} 23. Rab1 {[%emt 0:07:38]} Nd8 {[%emt 0:01:13]} 24. Nd4 {[%emt 0:07:58]} Rb8 {[%emt 0:03:54]} 25. Kg2 {[%emt 0:00:42]} g6 {[%emt 0:00:30]} 26. h3 {[%emt 0:01:45]} b6 {[%emt 0:02:35]} 27. g4 {[%emt 0:00:16]} fxg4 {[%emt 0:02:53]} 28. hxg4 {[%emt 0:00:02]} Rc8 {[%emt 0:00:17]} 29. Nb5 {[%emt 0:01:22]} Nc6 {[%emt 0:07:39]} 30. Bxc6 {[%emt 0:03:11]} Rcxc6 {[%emt 0:00:04]} 31. Rd7 {[%emt 0:01:21]} Bf8 {[%emt 0:02:08]} 32. Nd4 {[%emt 0:00:54]} Rxc4 {[%emt 0:01:22]} 33. g5 {[%emt 0:00:32]} Rxd4 {[%emt 0:01:21]} 34. exd4 {[%emt 0:00:47]} Rf5 {[%emt 0:00:01]} 35. Rxa7 {[%emt 0:02:12]} Rxg5+ {[%emt 0:00:07]} 36. Kf2 {[%emt 0:00:11]} b5 {[%emt 0:02:22]} 37. Ke3 {[%emt 0:01:21]} Kg8 {[%emt 0:01:04]} 38. Kxe4 {[%emt 0:00:33]} Rg4+ {[%emt 0:00:34]} 39. Kd5 {[%emt 0:00:44]} Rg5+ {[%emt 0:00:44]} 40. Kc6 {[%emt 0:00:03]} b4 {[%emt 0:00:04]} 41. e4 {[%emt 0:00:22]} Rg4 {[%emt 0:00:57]} 42. Rf1 {[%emt 0:00:17]} Bh6 {[%emt 0:00:44]} 43. Kd5 {[%emt 0:00:38]} Be3 {[%emt 0:00:16]} 44. Rff7 {[%emt 0:00:39]} Rg5+ {[%emt 0:00:14]} 45. Ke6 {[%emt 0:00:12]} 1-0